bitfinex/quotes_ETHUSD_20240703
["timestamp","ask_amount","ask_price","bid_price","bid_amount"]
[1719989480821,0.51359134,3373.3,3373.1,0.59374982]
[1719989482342,1.077,3373.4,3373.1,0.59374982]
[1719989483182,0.51360427,3373.3,3373.1,0.59374982]
[1719989483387,1.077,3373.4,3373.1,0.59374982]
[1719989483717,0.51359962,3373.3,3373.1,0.59374982]
[1719989483921,1.41774,3373.7,3373.1,0.59374982]
[1719989484097,0.51358647,3373.6,3373.1,0.59374982]
[1719989484293,0.51358647,3373.5,3373.1,0.59374982]
[1719989485486,0.5135885,3373.4,3373.1,0.59374982]
[1719989485712,2.199814,3373.6,3373.1,0.59374982]
[1719989486029,0.51359,3373.5,3373.1,0.59374982]
[1719989486440,0.51359,3373.4,3373.1,0.59374982]
[1719989486583,2.199814,3373.6,3373.1,0.59374982]
[1719989486779,0.51358982,3373.5,3373.1,0.59374982]
[1719989487034,0.51358982,3373.4,3373.1,0.59374982]
[1719989487533,2.199814,3373.6,3373.1,0.59374982]
[1719989487699,0.51358561,3373.5,3373.3,0.59374982]
[1719989487901,1.077,3373.7,3373.3,0.59374982]
[1719989488125,0.51357255,3373.6,3373.3,0.59374982]
[1719989488327,0.51357255,3373.5,3373.3,0.59374982]
[1719989488706,1.077,3373.7,3373.3,0.59374982]
[1719989489215,0.51357239,3373.6,3373.3,0.59374982]
[1719989489398,0.51357239,3373.5,3373.3,0.59374982]
[1719989489601,1.077,3373.7,3373.3,0.59374982]
[1719989489947,0.51357254,3373.6,3373.3,0.59374982]
[1719989490109,0.51357254,3373.5,3373.3,0.59374982]
[1719989490315,1.077,3373.7,3373.3,0.59374982]
[1719989490527,0.51357203,3373.6,3373.3,0.59374982]
[1719989490701,0.51357203,3373.5,3373.3,0.59374982]
[1719989490897,2.3304,3373.8,3373.3,0.59374982]
[1719989491109,0.51357066,3373.7,3373.3,0.59374982]
[1719989491434,1.59057066,3373.6,3373.3,0.59374982]
[1719989491630,0.51357066,3373.5,3373.3,0.59374982]
[1719989492842,0.51517079,3373.5,3373.3,0.59374982]
[1719989493008,0.51357066,3373.4,3373.3,0.59374982]
[1719989495329,0.00160013,3373.5,3373.3,0.59374982]
[1719989495522,0.51357393,3373.4,3373.3,0.59374982]
[1719989495837,0.00160013,3373.5,3373.3,0.59374982]
[1719989496050,0.51357433,3373.4,3373.3,0.59374982]
[1719989497229,0.51357433,3373.4,3372.9,0.30967985]
[1719989497230,0.51357433,3373.4,3373.1,0.59374982]
[1719989497418,0.51357433,3373.3,3373.1,0.59374982]
[1719989497610,1.59057433,3373.3,3373.1,0.59374982]
[1719989497937,0.51357433,3373.2,3373.1,0.59374982]
[1719989498629,2.3431,3373.4,3373.1,0.59374982]
[1719989498795,0.51360061,3373.3,3373.1,0.59374982]
[1719989498997,2.3431,3373.4,3373.1,0.59374982]
[1719989499201,0.51360504,3373.3,3373.1,0.59374982]
[1719989499527,0.51360504,3373.2,3373.1,0.59374982]
[1719989500940,1.59060504,3373.2,3373.1,0.59374982]
[1719989501108,1.98413556,3373.2,3373.1,0.59374982]
[1719989501704,1.47053052,3373.2,3373.1,0.59374982]
[1719989502020,1.98419675,3373.2,3373.1,0.59374982]
[1719989504115,1.98419675,3373.2,3372.4,2.59041035]
[1719989504116,2.393,3373.1,3372.7,0.59374982]
[1719989504355,1.077,3372.9,3372.7,0.59374982]
[1719989504504,0.51366623,3372.8,3372.7,0.59374982]
[1719989505130,0.51367738,3372.8,3372.7,0.59374982]
[1719989507938,1.59067738,3372.8,3372.7,0.59374982]
[1719989508140,0.51367738,3372.8,3372.7,0.59374982]
[1719989508675,1.077,3373.2,3372.7,0.59374982]
[1719989508816,0.51366974,3373.1,3372.7,0.59374982]
[1719989509145,0.51366974,3373.0,3372.7,0.59374982]
[1719989509305,0.51366974,3372.9,3372.7,0.59374982]
[1719989509506,1.077,3373.2,3372.7,0.59374982]
[1719989509739,0.51366735,3373.1,3372.7,0.59374982]
[1719989510037,0.51366735,3373.0,3372.7,0.59374982]
[1719989510206,0.51366735,3372.9,3372.7,0.59374982]
[1719989510402,0.51366735,3373.0,3372.7,0.59374982]
[1719989511531,0.51367562,3372.9,3372.7,0.59374982]
[1719989511730,1.077,3373.1,3372.7,0.59374982]
[1719989511901,0.51367525,3373.0,3372.7,0.59374982]
[1719989512107,0.51367525,3372.9,3372.7,0.59374982]
[1719989512332,1.077,3373.2,3372.7,0.59374982]
[1719989512532,0.51367026,3373.1,3372.7,0.59374982]
[1719989512743,1.077,3373.2,3372.7,0.59374982]
[1719989512744,0.51367026,3373.0,3372.7,0.59374982]
[1719989512950,0.51367026,3372.9,3372.7,0.59374982]
[1719989513265,1.077,3373.2,3372.7,0.59374982]
[1719989513561,0.51367052,3373.1,3372.7,0.59374982]
[1719989513762,0.51367052,3373.0,3372.7,0.59374982]
[1719989513931,0.51367052,3372.9,3372.7,0.59374982]
[1719989514135,1.077,3373.2,3372.7,0.59374982]
[1719989514341,0.51366736,3373.1,3372.7,0.59374982]
[1719989514643,0.51366953,3373.0,3372.7,0.59374982]
[1719989514964,0.51366953,3372.9,3372.7,0.59374982]
[1719989515254,1.077,3373.2,3372.7,0.59374982]
[1719989515454,0.5136685,3373.1,3372.7,0.59374982]
[1719989515767,0.5136685,3373.0,3372.7,0.59374982]
[1719989515927,0.5136685,3373.1,3372.7,0.59374982]
[1719989516271,0.5136685,3373.0,3372.7,0.59374982]
[1719989516423,0.5136685,3372.9,3372.7,0.59374982]
[1719989516756,1.077,3373.2,3372.7,0.59374982]
[1719989517130,0.5136684,3373.1,3372.7,0.59374982]
[1719989517331,0.5136684,3373.0,3372.7,0.59374982]
[1719989517532,0.5136684,3372.9,3372.7,0.59374982]
[1719989517731,1.077,3373.2,3372.7,0.59374982]
[1719989517954,0.51366977,3373.1,3372.7,0.59374982]
[1719989518115,2.20126778,3373.2,3372.7,0.59374982]
[1719989518116,0.51366977,3373.0,3372.7,0.59374982]
[1719989518324,0.51366977,3373.1,3372.7,0.59374982]
[1719989518537,0.51366977,3373.0,3372.7,0.59374982]
[1719989518900,0.51366977,3372.9,3372.7,0.59374982]
[1719989519372,8.557,3373.4,3372.9,0.59374982]
[1719989519682,1.50516058,3373.3,3372.9,0.59374982]
[1719989520037,0.51364057,3373.2,3372.9,0.59374982]
[1719989520226,0.51364057,3373.1,3372.9,0.59374982]
[1719989520423,8.557,3373.4,3372.9,0.59374982]
[1719989520763,9.54852001,3373.4,3373.1,0.59374982]
[1719989521067,0.51363197,3373.3,3373.1,0.59374982]
[1719989521232,9.54852001,3373.4,3373.1,0.59374982]
[1719989521233,0.51363197,3373.2,3373.1,0.59374982]
[1719989521435,0.51363177,3373.2,3373.1,0.59374982]
[1719989523668,0.51362543,3373.2,3373.1,0.59374982]
[1719989524363,1.077,3373.4,3373.1,0.59374982]
[1719989524364,0.513626,3373.3,3373.1,0.59374982]
[1719989525929,0.513626,3373.4,3373.1,2.99554982]
[1719989526132,0.513626,3373.3,3373.1,2.99554982]
[1719989526369,0.5135791,3373.2,3373.1,2.99554982]
[1719989526552,0.00160013,3373.5,3373.1,2.99554982]
[1719989526738,0.51357351,3373.4,3373.1,2.99554982]
[1719989526926,0.51357487,3373.3,3373.1,2.99554982]
[1719989527366,0.00160013,3373.5,3373.3,0.59374982]
[1719989527681,0.51357009,3373.4,3373.3,0.59374982]
[1719989528373,0.00160013,3373.5,3373.3,0.59374982]
[1719989528537,0.51358249,3373.4,3373.3,0.59374982]
[1719989529637,0.51358249,3373.4,3373.1,0.59374982]
[1719989529830,0.51358249,3373.3,3372.9,0.59374982]
[1719989530034,1.02725675,3373.3,3372.9,0.59374982]
[1719989530233,0.51367426,3373.3,3372.9,0.59374982]
[1719989530465,0.5136252,3373.2,3372.9,0.59374982]
[1719989530645,0.5136252,3373.1,3372.9,0.59374982]
[1719989530846,0.5136252,3373.2,3372.9,0.59374982]
[1719989531043,0.148,3373.3,3372.9,0.59374982]
[1719989531044,0.5136252,3373.1,3372.9,0.59374982]
[1719989531242,0.5136252,3373.2,3372.9,0.59374982]
[1719989531483,0.5136252,3373.1,3372.9,0.59374982]
[1719989531643,0.5136252,3373.2,3372.9,0.59374982]
[1719989531937,0.5136252,3373.1,3372.9,0.59374982]
[1719989532138,0.5136252,3373.2,3372.9,0.59374982]
[1719989533767,0.148,3373.3,3372.9,0.59374982]
[1719989533768,0.51364068,3373.1,3372.9,0.59374982]
[1719989533981,0.51364068,3373.0,3372.9,0.59374982]
[1719989534170,0.51364042,3373.0,3372.9,0.59374982]
[1719989536678,0.148,3373.3,3372.9,0.59374982]
[1719989536876,0.51363583,3373.0,3372.9,0.59374982]
[1719989540057,0.51361661,3373.0,3372.9,0.59374982]
[1719989540558,0.51361661,3373.0,3372.9,2.95584982]
[1719989540757,0.148,3373.3,3372.9,2.95584982]
[1719989540956,0.51360464,3373.2,3372.9,2.95584982]
[1719989541156,0.51360464,3373.1,3372.9,2.95584982]
[1719989541384,0.148,3373.3,3372.9,2.95584982]
[1719989541685,0.51360247,3373.2,3373.1,0.59374982]
[1719989543152,0.148,3373.3,3373.1,0.59374982]
[1719989543353,0.51359446,3373.2,3373.1,0.59374982]
[1719989546586,0.51361358,3373.2,3373.1,0.59374982]
[1719989546987,0.148,3373.3,3372.9,0.59374982]
[1719989547191,0.87342338,3373.2,3372.9,0.59374982]
[1719989547355,0.51364337,3373.1,3372.9,0.59374982]
[1719989547685,0.51364337,3373.0,3372.9,0.59374982]
[1719989549657,1.225,3373.3,3372.9,0.59374982]
[1719989549859,0.51363734,3373.0,3372.9,0.59374982]
[1719989553008,1.225,3373.3,3372.9,0.59374982]
[1719989553304,0.51362399,3373.2,3372.9,0.59374982]
[1719989556377,0.51362698,3373.1,3372.9,0.59374982]
[1719989556584,0.51362698,3373.0,3372.9,0.59374982]
[1719989559678,0.5136275,3373.0,3372.9,0.59374982]
[1719989560190,0.51362742,3373.0,3372.9,0.59374982]
[1719989562914,0.51362266,3373.0,3372.9,0.59374982]
[1719989564482,0.148,3373.3,3372.9,0.59374982]
[1719989564682,0.51361565,3373.2,3372.9,0.59374982]
[1719989565045,0.51361565,3373.1,3372.9,0.59374982]
[1719989565316,0.51361565,3373.0,3372.9,0.59374982]
[1719989569532,0.148,3373.3,3372.9,0.59374982]
[1719989569731,0.51361339,3373.0,3372.9,0.59374982]
[1719989573052,0.51361887,3373.0,3372.9,0.59374982]
[1719989573538,0.51361883,3373.0,3372.9,0.59374982]
[1719989576012,2.3921,3373.0,3372.9,0.59374982]
[1719989576236,2.90574231,3373.0,3372.9,0.59374982]
[1719989576418,2.90574224,3373.0,3372.9,0.59374982]
[1719989579439,2.3921,3373.0,3372.9,0.59374982]
[1719989579640,2.90574341,3373.0,3372.9,0.59374982]
[1719989580542,0.51364341,3373.0,3372.9,0.59374982]
[1719989581860,5.3611,3373.2,3372.9,0.59374982]
[1719989582001,0.51363798,3373.0,3372.9,0.59374982]
[1719989585343,0.51364153,3373.0,3372.9,0.59374982]
[1719989585646,5.3611,3373.2,3372.9,0.59374982]
[1719989585942,0.5136438,3373.1,3372.9,0.59374982]
[1719989586142,0.5136438,3373.0,3372.9,0.59374982]
[1719989588430,0.51365076,3373.0,3372.9,0.59374982]
[1719989588763,0.51363902,3373.0,3372.9,0.59374982]
[1719989589061,1.027278,3373.0,3372.9,0.59374982]
[1719989591735,1.02729308,3373.0,3372.9,0.59374982]
[1719989595238,1.02729326,3373.0,3372.9,0.59374982]
[1719989595445,0.51363902,3373.0,3372.9,0.59374982]
[1719989595839,1.02729318,3373.0,3372.9,0.59374982]
[1719989596580,0.51363902,3373.0,3372.9,0.59374982]
[1719989597051,1.02728814,3373.0,3372.9,0.59374982]
[1719989597561,0.51364912,3373.0,3372.9,0.59374982]
[1719989598573,0.51364889,3373.0,3372.9,0.59374982]
[1719989599142,0.5136564,3373.0,3372.9,0.59374982]
[1719989600349,2.0680613,3373.0,3372.9,0.59374982]
[1719989601050,0.5136564,3373.0,3372.9,0.59374982]
[1719989601350,5.3611,3373.2,3372.9,0.59374982]
[1719989601552,2.06811614,3373.1,3372.9,0.59374982]
[1719989601763,5.3611,3373.2,3372.9,0.59374982]
[1719989601979,0.51364783,3373.0,3372.9,0.59374982]
[1719989602747,0.51364783,3373.1,3372.9,0.59374982]
[1719989602954,0.51364783,3373.0,3372.9,0.59374982]
[1719989603148,0.51364783,3373.1,3372.9,0.59374982]
[1719989605144,5.3611,3373.2,3372.9,0.59374982]
[1719989605348,0.51364566,3373.1,3372.9,0.59374982]
[1719989606983,1.11592023,3373.1,3372.6,0.59374982]
[1719989607185,2.06751626,3373.0,3372.6,0.59374982]
[1719989607347,0.51364566,3372.9,3372.6,0.59374982]
[1719989607548,1.17225566,3373.1,3372.6,0.59374982]
[1719989607776,2.06747458,3373.0,3372.6,0.59374982]
[1719989607973,0.51364566,3372.9,3372.6,0.59374982]
[1719989608485,3.65861,3373.1,3372.6,0.59374982]
[1719989608663,0.51366634,3372.8,3372.6,0.59374982]
[1719989608866,0.51366634,3372.7,3372.6,0.59374982]
[1719989609061,0.51366634,3372.9,3372.6,0.59374982]
[1719989609264,0.51366634,3372.8,3372.6,0.59374982]
[1719989609483,3.0,3373.1,3372.6,0.59374982]
[1719989609484,0.51366634,3372.7,3372.6,0.59374982]
[1719989609790,0.51366634,3372.7,3372.6,1.67074982]
[1719989610162,3.0,3373.1,3372.6,4.07174982]
[1719989610481,0.51363804,3373.0,3372.6,4.07174982]
[1719989610684,0.51363804,3372.9,3372.8,0.59374982]
[1719989611666,2.0674878,3372.9,3372.4,0.59374982]
[1719989611854,4.077,3373.0,3372.4,0.59374982]
[1719989611855,0.51369999,3372.8,3372.4,0.59374982]
[1719989612055,4.077,3373.0,3372.4,0.59374982]
[1719989612056,0.51369999,3372.7,3372.4,0.59374982]
[1719989612282,4.077,3373.0,3372.4,0.59374982]
[1719989612491,2.75143517,3372.9,3372.4,0.59374982]
[1719989612787,0.51370919,3372.8,3372.4,0.59374982]
[1719989612989,0.51370919,3372.7,3372.4,0.59374982]
[1719989613285,0.51370919,3372.6,3372.4,0.59374982]
[1719989613489,0.51370919,3372.5,3372.4,0.59374982]
[1719989615095,0.5137125,3372.8,3372.4,0.59374982]
[1719989615255,0.5137125,3372.5,3372.4,0.59374982]
[1719989615459,3.0,3373.0,3372.4,0.59374982]
[1719989615686,2.06753802,3372.9,3372.4,0.59374982]
[1719989615874,0.51369348,3372.8,3372.4,0.59374982]
[1719989616080,0.51369348,3372.7,3372.4,0.59374982]
[1719989616275,0.51369348,3372.9,3372.4,0.59374982]
[1719989616482,1.26662241,3372.9,3372.4,0.59374982]
[1719989616664,0.51369348,3372.8,3372.4,0.59374982]
[1719989617600,2.82049348,3372.8,3372.4,0.59374982]
[1719989617984,0.51369348,3372.7,3372.4,0.59374982]
[1719989618380,2.3068,3372.8,3372.4,0.59374982]
[1719989618691,0.51370838,3372.7,3372.4,0.59374982]
[1719989621580,0.51370618,3372.6,3372.4,0.59374982]
[1719989621867,0.51370618,3372.5,3372.4,0.59374982]
[1719989622063,0.51370618,3372.7,3372.4,0.59374982]
[1719989623899,3.51370618,3372.7,3372.4,0.59374982]
[1719989624200,0.51370618,3372.6,3372.4,0.59374982]
[1719989625418,3.0,3372.7,3372.4,0.59374982]
[1719989625419,0.51371635,3372.5,3372.4,0.59374982]
[1719989626806,3.0,3372.7,3372.4,0.59374982]
[1719989627007,0.51369473,3372.6,3372.4,0.59374982]
[1719989627305,5.4319,3373.0,3372.4,0.59374982]
[1719989627611,0.51369667,3372.9,3372.4,0.59374982]
[1719989627807,0.51369667,3372.8,3372.4,0.59374982]
[1719989628308,0.51369898,3372.7,3372.4,0.59374982]
[1719989628489,0.51369882,3372.7,3372.4,0.59374982]
[1719989628704,0.51369882,3372.6,3372.4,0.59374982]
[1719989628893,3.0,3372.9,3372.4,0.59374982]
[1719989629079,0.5136986,3372.8,3372.4,0.59374982]
[1719989629404,0.5136986,3372.7,3372.4,0.59374982]
[1719989629625,0.5136986,3372.8,3372.4,0.59374982]
[1719989631408,3.76137793,3372.9,3372.4,0.59374982]
[1719989631656,0.51369391,3372.7,3372.4,0.59374982]
[1719989631816,0.51369391,3372.6,3372.4,0.59374982]
[1719989632123,0.51369391,3372.5,3372.4,0.59374982]
[1719989632324,0.51369391,3372.8,3372.4,0.59374982]
[1719989634686,0.51369849,3372.7,3372.4,0.59374982]
[1719989635088,0.51369849,3372.6,3372.4,0.59374982]
[1719989635309,0.51369849,3372.5,3372.4,0.59374982]
[1719989638141,0.148,3373.3,3373.1,0.59374982]
[1719989638421,0.51360241,3373.2,3373.1,0.59374982]
[1719989638741,0.51358292,3373.2,3373.1,0.59374982]
[1719989639224,0.51358292,3373.2,3372.5,0.05929358]
[1719989639225,0.51358292,3373.2,3372.9,0.59374982]
[1719989639445,0.51358292,3373.1,3372.9,0.59374982]
[1719989639921,0.51358292,3373.1,3372.6,0.59374982]
[1719989640825,3.53427543,3373.2,3372.6,0.59374982]
[1719989641015,0.51365,3373.0,3372.9,0.59374982]
[1719989641524,0.51364402,3373.0,3372.9,0.59374982]
[1719989642032,0.51364402,3373.0,3372.9,2.87744982]
[1719989642755,3.148,3373.3,3372.9,2.87744982]
[1719989642901,0.51360598,3373.2,3372.9,2.87744982]
[1719989643848,0.51361538,3373.1,3372.9,2.87744982]
[1719989644006,0.51361538,3373.0,3372.9,2.87744982]
[1719989644534,0.51362127,3373.0,3372.9,0.59374982]
[1719989644931,0.51362127,3373.2,3372.9,0.59374982]
[1719989645127,0.51362127,3373.1,3372.9,0.59374982]
[1719989645318,0.51362127,3373.2,3372.9,0.59374982]
[1719989645638,0.51362127,3373.1,3372.9,0.59374982]
[1719989645933,3.148,3373.3,3372.9,0.59374982]
[1719989646104,0.51360998,3373.2,3372.9,0.59374982]
[1719989646300,0.51360998,3373.1,3372.9,0.59374982]
[1719989646499,0.51360998,3373.2,3372.9,0.59374982]
[1719989646730,0.51360998,3373.1,3372.9,0.59374982]
[1719989646935,3.148,3373.3,3372.9,0.59374982]
[1719989647134,0.51360675,3373.2,3372.9,0.59374982]
[1719989647439,0.51360988,3373.1,3372.9,0.59374982]
[1719989647635,3.148,3373.3,3372.9,0.59374982]
[1719989647949,0.51360992,3373.2,3372.9,0.59374982]
[1719989648241,0.51360992,3373.1,3372.9,0.59374982]
[1719989648408,3.148,3373.3,3372.9,0.59374982]
[1719989648611,0.51360942,3373.2,3372.9,0.59374982]
[1719989648926,3.148,3373.3,3372.9,0.59374982]
[1719989649102,0.51361189,3373.2,3372.9,0.59374982]
[1719989650341,3.0,3373.3,3372.9,0.59374982]
[1719989650518,0.51361217,3373.1,3372.9,0.59374982]
[1719989650844,0.61753972,3373.2,3372.9,0.59374982]
[1719989651045,0.51361959,3373.1,3372.9,0.59374982]
[1719989651224,3.0,3373.3,3372.9,0.59374982]
[1719989651552,0.513615,3373.2,3372.9,0.59374982]
[1719989651752,3.0,3373.3,3372.9,0.59374982]
[1719989651935,0.51361493,3373.2,3372.9,0.59374982]
[1719989652136,3.0,3373.3,3372.9,0.59374982]
[1719989652454,0.51361847,3373.2,3372.9,0.59374982]
[1719989652655,5.51464001,3373.3,3372.9,0.59374982]
[1719989652856,0.51361648,3373.2,3372.9,0.59374982]
[1719989653061,5.51464001,3373.3,3372.9,0.59374982]
[1719989653224,0.51361646,3373.2,3372.9,0.59374982]
[1719989653424,5.51464001,3373.3,3372.9,0.59374982]
[1719989653620,1.25970448,3373.2,3372.9,0.59374982]
[1719989653853,0.51361765,3373.2,3372.9,0.59374982]
[1719989654057,5.51464001,3373.3,3372.9,0.59374982]
[1719989654558,0.51361761,3373.2,3372.9,0.59374982]
[1719989654769,5.51464001,3373.3,3372.9,0.59374982]
[1719989655060,0.51361781,3373.2,3372.9,0.59374982]
[1719989655260,0.51361781,3373.1,3372.9,0.59374982]
[1719989655420,2.51662401,3373.2,3372.9,0.59374982]
[1719989655625,0.5136178,3373.1,3372.9,0.59374982]
[1719989655827,3.0,3373.3,3372.9,0.59374982]
[1719989656160,0.5136177,3373.2,3372.9,0.59374982]
[1719989656459,0.5136177,3373.1,3372.9,0.59374982]
[1719989656758,3.0,3373.3,3372.9,0.59374982]
[1719989656923,4.78615878,3373.3,3372.9,0.59374982]
[1719989657125,0.51361545,3373.2,3372.9,0.59374982]
[1719989657326,0.51361545,3373.1,3372.9,0.59374982]
[1719989657630,4.78615878,3373.3,3372.9,0.59374982]
[1719989657831,0.51362105,3373.2,3372.9,0.59374982]
[1719989658037,0.51362105,3373.1,3372.9,0.59374982]
[1719989658356,4.78615878,3373.3,3372.9,0.59374982]
[1719989658658,0.5136258,3373.2,3372.9,0.59374982]
[1719989658859,0.5136258,3373.1,3372.9,0.59374982]
[1719989659056,4.78615878,3373.3,3372.9,0.59374982]
[1719989659241,0.51362118,3373.2,3372.9,0.59374982]
[1719989659432,0.51362118,3373.1,3372.9,0.59374982]
[1719989659647,0.51362118,3373.2,3372.9,0.59374982]
[1719989659860,0.51362964,3373.1,3372.9,0.59374982]
[1719989660054,4.78615878,3373.3,3372.9,0.59374982]
[1719989660559,0.51362591,3373.2,3372.9,1.67074982]
[1719989660727,0.51362591,3373.1,3372.9,0.59374982]
[1719989660931,3.0,3373.3,3372.9,0.59374982]
[1719989661143,0.51362357,3373.2,3372.9,0.59374982]
[1719989661344,0.51362357,3373.1,3372.9,0.59374982]
[1719989661570,3.0,3373.3,3372.9,0.59374982]
[1719989661766,0.5136234,3373.2,3372.9,0.59374982]
[1719989661950,0.5136234,3373.1,3372.9,0.59374982]
[1719989662153,0.51362091,3373.0,3372.9,0.59374982]
[1719989663553,5.62234001,3373.3,3372.9,0.59374982]
[1719989663739,1.02724564,3373.0,3372.9,1.67074982]
[1719989664136,0.51362282,3373.0,3372.9,0.59374982]
[1719989664330,1.02723447,3373.0,3372.9,0.59374982]
[1719989666848,1.02724742,3373.0,3372.9,0.59374982]
[1719989670262,1.02724774,3373.0,3372.9,0.59374982]
[1719989673580,1.02724808,3373.0,3372.9,0.59374982]
[1719989676815,0.51362282,3373.0,3372.9,0.59374982]
[1719989676958,1.02724844,3373.0,3372.9,0.59374982]
[1719989677165,0.51362282,3373.0,3372.9,0.59374982]
[1719989677370,1.02724857,3373.0,3372.9,0.59374982]
[1719989678659,1.02724857,3373.0,3372.7,0.59374982]
[1719989678660,2.2536,3372.9,3372.7,0.59374982]
[1719989678890,2.06844152,3372.8,3372.7,0.59374982]
[1719989679079,6.14544152,3372.8,3372.7,0.59374982]
[1719989680065,6.14559871,3372.8,3372.7,0.59374982]
[1719989681366,3.51372646,3372.8,3372.7,0.59374982]
[1719989681915,4.19815911,3372.8,3372.7,0.59374982]
[1719989682087,3.51372646,3372.8,3372.7,0.59374982]
[1719989683195,0.51372646,3372.8,3372.7,0.59374982]
[1719989683372,3.51365272,3372.8,3372.7,0.59374982]
[1719989683575,3.0,3372.8,3372.7,0.59374982]
[1719989683776,0.51364677,3372.8,3372.7,0.59374982]
[1719989684905,3.0,3373.3,3372.7,0.59374982]
[1719989685115,2.06828128,3373.2,3372.7,0.59374982]
[1719989685288,0.51364161,3373.1,3372.7,0.59374982]
[1719989685488,0.51364161,3373.2,3372.7,0.59374982]
[1719989685686,0.51364161,3373.1,3372.7,0.59374982]
[1719989685887,0.51364161,3373.2,3372.7,0.59374982]
[1719989686087,0.51364161,3373.2,3373.1,0.59374982]
[1719989686299,4.62962879,3373.2,3372.9,0.59374982]
[1719989686500,3.0,3373.1,3372.9,0.59374982]
[1719989686796,3.51365812,3373.1,3372.9,0.59374982]
[1719989686982,0.51365812,3373.0,3372.9,0.59374982]
[1719989688513,0.51365812,3373.0,3372.7,0.59374982]
[1719989688699,0.60750323,3372.9,3372.7,0.59374982]
[1719989688903,0.51365812,3372.8,3372.7,0.59374982]
[1719989689891,0.51367648,3372.8,3372.7,0.59374982]
[1719989690091,0.51367648,3372.8,3372.7,2.93274982]
[1719989690324,3.0,3373.3,3373.0,0.59374982]
[1719989690498,0.51364139,3373.2,3373.0,0.59374982]
[1719989690695,0.51364139,3373.1,3373.0,0.59374982]
[1719989693040,0.00160013,3373.5,3373.0,0.59374982]
[1719989693315,2.71368608,3373.4,3373.0,0.59374982]
[1719989693484,5.06817607,3373.3,3373.0,0.59374982]
[1719989693825,0.51364255,3373.2,3373.0,0.59374982]
[1719989694112,0.51364255,3373.1,3373.0,0.59374982]
[1719989695622,0.00160013,3373.5,3373.3,0.59374982]
[1719989695807,0.51359155,3373.4,3373.3,0.59374982]
[1719989696213,0.00160013,3373.5,3373.3,0.59374982]
[1719989696399,0.51357811,3373.4,3373.3,0.59374982]
[1719989699645,0.51359385,3373.4,3373.3,0.59374982]
[1719989702113,0.51359941,3373.4,3373.3,0.59374982]
[1719989702432,1.10276936,3373.4,3373.3,0.59374982]
[1719989702631,1.10277493,3373.4,3373.3,0.59374982]
[1719989705316,1.10277272,3373.4,3373.3,0.59374982]
[1719989706416,0.51360277,3373.4,3373.3,0.59374982]
[1719989708566,0.00160013,3373.5,3373.3,0.59374982]
[1719989708783,0.51357617,3373.4,3373.3,0.59374982]
[1719989708961,0.00160013,3373.5,3373.3,1.73003068]
[1719989709260,0.00160013,3373.5,3373.4,1.48218]
[1719989711624,0.00160013,3373.5,3373.4,5.43886]
[1719989711820,0.00160013,3373.5,3373.4,5.49813687]
[1719989714657,0.00160013,3373.5,3373.4,6.57513687]
[1719989742977,0.00160013,3373.5,3373.4,4.10063687]
[1719989744848,0.00160013,3373.5,3373.4,1.48218]
[1719989745188,0.00160013,3373.5,3373.4,2.55918]
[1719989748793,0.00160013,3373.5,3373.4,7.55918]
[1719989754271,0.00160013,3373.5,3373.4,9.04136]
[1719989756960,0.00160013,3373.5,3373.4,11.32986]
[1719989757503,0.00160013,3373.5,3373.4,11.73504]
[1719989757702,0.00160013,3373.5,3373.4,12.81204]
[1719989762164,0.00160013,3373.5,3373.4,7.96436]
[1719989762370,0.00160013,3373.5,3373.4,9.04136]
[1719989773199,0.00160013,3373.5,3373.4,7.96436]
[1719989773404,0.00160013,3373.5,3373.4,9.04136]
[1719989780238,0.00160013,3373.5,3373.4,7.96436]
[1719989780443,0.00160013,3373.5,3373.4,9.04136]
[1719989782995,0.00160013,3373.5,3373.4,7.55918]
[1719989788414,0.00160013,3373.5,3373.4,9.04136]
[1719989798919,0.00160013,3373.5,3373.4,7.96436]
[1719989799247,0.00160013,3373.5,3373.4,9.04136]
[1719989800698,0.00160013,3373.5,3373.4,7.55918]
[1719989802409,0.00160013,3373.5,3373.4,5.0]
[1719989802410,2.46220013,3373.5,3373.4,5.0]
[1719989802615,3.22193407,3373.5,3373.4,5.0]
[1719989803437,2.70842014,3373.5,3373.4,5.0]
[1719989807307,2.46220013,3373.5,3373.4,5.0]
[1719989807645,0.00160013,3373.5,3373.4,5.0]
[1719989819053,0.00160013,3373.5,3373.4,6.48218]
[1719989821382,0.00160013,3373.5,3373.4,7.55918]
[1719989827469,0.00160013,3373.5,3373.4,9.04136]
[1719989836459,0.00160013,3373.5,3373.4,7.96436]
[1719989836655,0.00160013,3373.5,3373.4,9.04136]
[1719989837483,8.789e-05,3373.5,3373.4,9.04136]
[1719989839699,8.789e-05,3373.5,3373.4,7.96436]
[1719989839999,8.789e-05,3373.5,3373.4,9.04136]
[1719989844684,8.789e-05,3373.5,3373.4,7.96436]
[1719989844866,8.789e-05,3373.5,3373.4,9.04136]
[1719989857583,8.789e-05,3373.5,3373.4,7.96436]
[1719989857785,8.789e-05,3373.5,3373.4,9.04136]
[1719989858211,8.789e-05,3373.5,3373.4,7.96436]
[1719989858427,8.789e-05,3373.5,3373.4,9.04136]
[1719989867303,8.789e-05,3373.5,3373.4,12.96304]
[1719989867507,7.48,3374.1,3374.0,2.07566982]
[1719989867821,2.2972,3374.6,3374.5,0.59374982]
[1719989868008,2.2972,3374.6,3374.5,1.67074982]
[1719989868911,2.2972,3374.6,3374.5,3.15244982]
[1719989874089,2.2972,3374.6,3374.5,2.07544982]
[1719989874289,2.2972,3374.6,3374.5,3.15244982]
[1719989882147,2.3198,3375.1,3375.0,0.59374982]
[1719989882434,2.83311384,3375.1,3375.0,1.67074982]
[1719989882725,2.3198,3375.1,3375.0,1.67074982]
[1719989891353,2.3198,3375.1,3375.0,0.59374982]
[1719989891555,3.06510457,3375.1,3375.0,0.59374982]
[1719989892455,2.2544,3375.0,3374.8,0.59374982]
[1719989893258,0.23198,3375.1,3374.8,0.59374982]
[1719989893259,2.91943622,3374.9,3374.8,0.59374982]
[1719989893656,2.4061,3374.9,3374.8,0.59374982]
[1719989893880,2.91943629,3374.9,3374.8,0.59374982]
[1719989897231,2.4061,3374.9,3374.8,0.59374982]
[1719989897427,2.91943589,3374.9,3374.8,0.59374982]
[1719989898123,2.91943589,3374.9,3374.8,1.67074982]
[1719989898124,0.51333589,3374.9,3374.8,1.67074982]
[1719989899693,2.497,3375.1,3374.8,1.67074982]
[1719989899843,0.51331016,3375.0,3374.8,1.67074982]
[1719989900049,2.497,3375.1,3374.8,1.67074982]
[1719989900355,0.51331002,3375.0,3374.8,1.67074982]
[1719989900568,2.497,3375.1,3374.8,0.59374982]
[1719989900747,2.497,3375.1,3375.0,0.59374982]
[1719989900963,3.0103184,3375.1,3375.0,0.59374982]
[1719989904140,3.01031772,3375.1,3375.0,0.59374982]
[1719989907394,2.497,3375.1,3375.0,0.59374982]